bitfinex/quotes_SOLUSD_20230402
["timestamp","ask_amount","ask_price","bid_price","bid_amount"]
[1680463189194,3.412,20.514,20.504,118.0818]
[1680463189394,3.412,20.514,20.505,10.0]
[1680463193506,3.412,20.514,20.504,118.0818]
[1680463201120,3.412,20.514,20.505,10.0]
[1680463201720,3.412,20.514,20.507,10.0]
[1680463207424,3.412,20.514,20.509,10.0]
[1680463207836,3.412,20.514,20.511,10.0]
[1680463210037,3.412,20.514,20.504,118.0818]
[1680463210231,3.412,20.514,20.505,10.0]
[1680463214537,0.0001,20.514,20.505,10.0]
[1680463214736,0.0001,20.514,20.507,10.0]
[1680463214958,0.0001,20.514,20.509,10.0]
[1680463215151,3.4121,20.514,20.509,10.0]
[1680463215354,6.822,20.52,20.511,10.0]
[1680463215552,6.822,20.52,20.513,10.0]
[1680463215934,6.822,20.52,20.509,10.0]
[1680463216140,3.412,20.514,20.504,118.0818]
[1680463216554,3.412,20.514,20.505,10.0]
[1680463219242,3.412,20.514,20.507,10.0]
[1680463219442,3.412,20.514,20.509,10.0]
[1680463219843,3.412,20.514,20.511,10.0]
[1680463220255,3.412,20.514,20.51,17.0]
[1680463221943,3.412,20.514,20.509,10.0]
[1680463222261,3.412,20.514,20.507,10.0]
[1680463223144,3.412,20.514,20.508,17.0]
[1680463223358,3.412,20.514,20.509,10.0]
[1680463223559,3.412,20.514,20.51,17.0]
[1680463223859,6.822,20.52,20.51,17.0]
[1680463223860,6.822,20.52,20.511,10.0]
[1680463224065,3.412,20.514,20.513,10.0]
[1680463224242,6.822,20.52,20.511,10.0]
[1680463225148,3.412,20.514,20.51,17.0]
[1680463229460,0.0001,20.514,20.511,10.0]
[1680463230168,3.4121,20.514,20.51,17.0]
[1680463230353,3.4121,20.514,20.503,114.04]
[1680463230867,3.4121,20.514,20.509,10.0]
[1680463231163,3.4121,20.514,20.508,17.0]
[1680463233472,3.4121,20.514,20.509,10.0]
[1680463234572,6.822,20.52,20.511,10.0]
[1680463234953,6.822,20.52,20.513,10.0]
[1680463235272,3.412,20.514,20.511,10.0]
[1680463235451,3.412,20.514,20.512,17.0]
[1680463235655,0.0001,20.514,20.513,10.0]
[1680463235958,0.0001,20.514,20.513,27.0]
[1680463236157,3.4121,20.514,20.513,17.0]
[1680463236476,6.822,20.52,20.513,17.0]
[1680463236666,6.822,20.52,20.514,17.0]
[1680463238763,6.822,20.52,20.515,10.0]
[1680463239668,6.822,20.52,20.514,17.0]
[1680463240004,6.822,20.52,20.513,10.0]
[1680463240167,6.822,20.52,20.515,10.0]
[1680463240370,6.822,20.52,20.513,10.0]
[1680463240569,6.822,20.52,20.514,37.0]
[1680463241503,6.822,20.52,20.514,20.0]
[1680463241658,6.822,20.52,20.512,20.0]
[1680463241863,6.822,20.52,20.513,17.0]
[1680463242060,6.822,20.52,20.514,20.0]
[1680463243070,6.822,20.52,20.516,10.0]
[1680463243281,6.822,20.52,20.514,20.0]
[1680463244082,6.822,20.52,20.512,20.0]
[1680463247374,6.822,20.52,20.504,118.0818]
[1680463248773,10.0,20.519,20.512,19.487649]
[1680463255188,6.822,20.52,20.512,19.487649]
[1680463256088,10.0,20.519,20.512,19.487649]
[1680463257273,10.0,20.519,20.506,17.0]
[1680463257775,10.0,20.519,20.506,10.0]
[1680463259493,10.0,20.519,20.504,118.0818]
[1680463260595,17.0,20.518,20.504,118.0818]
[1680463260775,10.0,20.517,20.504,118.0818]
[1680463260976,17.0,20.516,20.504,118.0818]
[1680463261180,10.0,20.515,20.504,118.0818]
[1680463265794,10.0,20.515,20.505,17.0]
[1680463266497,10.0,20.517,20.505,17.0]
[1680463267689,10.0,20.517,20.506,10.0]
[1680463268790,10.0,20.517,20.507,17.0]
[1680463269095,10.0,20.519,20.508,9.5]
[1680463269280,10.0,20.519,20.509,17.0]
[1680463271321,10.0,20.519,20.508,10.0]
[1680463271502,10.0,20.519,20.509,17.0]
[1680463272983,10.0,20.519,20.508,10.0]
[1680463273180,10.0,20.519,20.509,17.0]
[1680463274200,10.0,20.519,20.508,10.0]
[1680463274391,10.0,20.519,20.509,17.0]
[1680463276403,10.0,20.519,20.506,10.0]
[1680463276603,10.0,20.519,20.505,10.0]
[1680463276800,10.0,20.519,20.507,10.0]
[1680463277500,10.0,20.519,20.506,17.0]
[1680463284310,0.32445455,20.518,20.506,17.0]
[1680463287015,0.32445455,20.518,20.495,403.6029027]
[1680463287511,0.32445455,20.518,20.506,10.0]
[1680463288401,0.32445455,20.518,20.505,17.0]
[1680463298522,0.32445455,20.518,20.495,403.6029027]
[1680463299426,0.32445455,20.518,20.506,10.0]
[1680463299722,0.32445455,20.518,20.505,27.0]
[1680463299919,0.32445455,20.518,20.495,403.6029027]
[1680463300312,0.32445455,20.518,20.506,10.0]
[1680463300521,0.32445455,20.518,20.505,27.0]
[1680463301034,0.32445455,20.518,20.505,10.0]
[1680463301621,0.32445455,20.518,20.495,403.6029027]
[1680463311426,0.32445455,20.518,20.495,454.36235828]
[1680463314321,0.32445455,20.518,20.505,17.0]
[1680463314519,0.32445455,20.518,20.506,10.0]
[1680463314719,35.132,20.52,20.506,10.0]
[1680463314925,6.822,20.52,20.508,10.0]
[1680463315330,0.32412343,20.517,20.51,10.0]
[1680463315529,0.32412343,20.517,20.509,17.0]
[1680463315931,0.32412343,20.517,20.508,10.0]
[1680463316533,10.0,20.519,20.508,10.0]
[1680463316917,10.0,20.519,20.506,10.0]
[1680463317176,10.0,20.519,20.508,10.0]
[1680463318834,10.0,20.519,20.507,17.0]
[1680463322245,6.822,20.52,20.507,17.0]
[1680463325156,6.822,20.52,20.505,10.0]
[1680463326856,6.822,20.52,20.507,10.0]
[1680463327268,10.0,20.519,20.507,10.0]
[1680463328458,10.29234018,20.519,20.505,10.0]
[1680463332354,10.29234018,20.519,20.507,10.0]
[1680463336656,10.29234018,20.519,20.506,17.0]
[1680463342172,10.29234018,20.519,20.506,10.0]
[1680463342371,10.29234018,20.519,20.508,10.0]
[1680463343576,10.36542523,20.519,20.507,17.0]
[1680463344676,0.36542523,20.519,20.507,17.0]
[1680463347778,10.36542523,20.519,20.507,17.0]
[1680463347980,10.36542523,20.519,20.507,10.0]
[1680463349475,0.36542523,20.519,20.507,10.0]
[1680463350981,10.36542523,20.519,20.506,17.0]
[1680463352080,0.36542523,20.519,20.506,17.0]
[1680463371801,0.36542523,20.519,20.507,10.0]
[1680463371991,0.36542523,20.519,20.509,10.0]
[1680463372385,0.36542523,20.519,20.511,10.0]
[1680463372689,6.822,20.52,20.512,17.0]
[1680463373489,6.822,20.52,20.509,10.0]
[1680463373490,29.462,20.52,20.509,10.0]
[1680463373700,0.29200909,20.518,20.507,10.0]
[1680463373893,0.29200909,20.518,20.509,10.0]
[1680463374487,10.0,20.519,20.509,10.0]
[1680463375395,29.462,20.52,20.511,10.0]
[1680463376313,6.822,20.52,20.512,17.0]
[1680463376490,6.822,20.52,20.513,10.0]
[1680463376795,10.0,20.526,20.514,17.0]
[1680463377095,22.57,20.55,20.521,10.0]
[1680463377284,22.57,20.55,20.523,10.0]
[1680463377285,361.80206968,20.544,20.523,10.0]
[1680463377588,3.41,20.527,20.525,10.0]
[1680463377783,10.0,20.543,20.527,10.0]
[1680463378298,10.0,20.543,20.529,10.0]
[1680463378595,10.0,20.543,20.531,10.0]
[1680463378994,10.0,20.543,20.529,10.0]
[1680463379200,10.0,20.543,20.53,17.0]
[1680463379436,10.0,20.543,20.531,10.0]
[1680463379583,10.0,20.543,20.532,17.0]
[1680463381802,19.493085,20.536,20.532,17.0]
[1680463381991,19.493085,20.536,20.531,17.0]
[1680463383198,19.493085,20.536,20.527,10.0]
[1680463383619,19.493085,20.536,20.526,112.5635]
[1680463385300,19.493085,20.536,20.527,17.0]
[1680463388611,10.0,20.535,20.526,112.5635]
[1680463388805,10.0,20.535,20.527,17.0]
[1680463389006,10.0,20.535,20.526,112.5635]
[1680463392016,10.0,20.535,20.496,396.3]
[1680463392017,10.0,20.535,20.501,34.41978929]
[1680463392215,10.0,20.533,20.514,112.9996]
[1680463392426,17.0,20.532,20.514,112.9996]
[1680463392601,10.0,20.531,20.514,112.9996]
[1680463392796,17.3029027,20.531,20.514,112.9996]
[1680463393017,7.3029027,20.53,20.514,112.9996]
[1680463393430,10.0,20.529,20.514,112.9996]
[1680463393603,10.0,20.529,20.516,17.0]
[1680463393805,10.0,20.529,20.517,10.0]
[1680463394023,10.0,20.529,20.524,19.493085]
[1680463402319,10.0,20.532,20.524,19.493085]
[1680463402518,10.0,20.533,20.524,19.493085]
[1680463406843,10.0,20.533,20.516,10.0]
[1680463407044,10.0,20.533,20.518,10.0]
[1680463407222,10.0,20.533,20.52,10.0]
[1680463408635,10.0,20.533,20.518,10.0]
[1680463408818,10.0,20.533,20.52,10.0]
[1680463409637,10.0,20.533,20.519,17.0]
[1680463410235,17.3029027,20.533,20.519,17.0]
[1680463410422,10.0,20.533,20.519,17.0]
[1680463410933,10.0,20.529,20.515,113.9411]
[1680463412426,10.0,20.527,20.515,113.9411]
[1680463417245,10.0,20.527,20.515,133.425956]
[1680463421633,17.0,20.526,20.515,133.425956]
[1680463421833,10.0,20.525,20.515,19.484856]
[1680463422038,10.0,20.523,20.515,19.484856]
[1680463422440,10.0,20.521,20.515,19.484856]
[1680463422836,10.0,20.519,20.515,19.484856]
[1680463423552,10.0,20.519,20.506,113.5042]
[1680463430442,10.0,20.521,20.507,10.0]
[1680463430643,10.0,20.521,20.509,10.0]
[1680463434162,10.0,20.521,20.508,17.0]
[1680463434751,27.3029027,20.524,20.508,17.0]
[1680463434948,20.0,20.524,20.509,10.0]
[1680463435156,20.0,20.524,20.511,10.0]
[1680463435354,20.0,20.524,20.513,10.0]
[1680463435753,20.0,20.524,20.514,17.0]
[1680463436573,20.0,20.524,20.513,10.0]
[1680463436763,20.0,20.524,20.514,17.0]
[1680463437567,20.0,20.524,20.509,10.0]
[1680463437568,10.0,20.523,20.509,10.0]
[1680463437751,10.0,20.523,20.51,17.0]
[1680463440963,30.004,20.53,20.511,30.0]
[1680463441164,30.004,20.53,20.512,27.0]
[1680463441372,30.004,20.53,20.513,20.0]
[1680463441547,30.004,20.53,20.514,27.0]
[1680463442568,30.004,20.53,20.516,10.0]
[1680463446454,30.004,20.53,20.515,117.4104]
[1680463446654,17.0,20.528,20.515,117.4104]
[1680463446866,10.0,20.527,20.515,117.4104]
[1680463458285,17.0,20.528,20.515,117.4104]
[1680463458586,30.004,20.53,20.515,117.4104]
[1680463458788,30.004,20.53,20.516,10.0]
[1680463461089,29.964,20.53,20.516,10.0]
[1680463464591,29.964,20.53,20.515,117.4104]
[1680463474898,29.964,20.53,20.517,10.0]
[1680463476203,29.964,20.53,20.515,117.4104]
[1680463478307,10.0,20.527,20.515,117.4104]
[1680463480308,10.0,20.525,20.515,117.4104]
[1680463485914,10.0,20.527,20.515,117.4104]
[1680463487613,10.0,20.525,20.504,118.0818]
[1680463487808,10.0,20.519,20.504,118.0818]
[1680463487996,17.0,20.518,20.505,19.495767]
[1680463488215,10.0,20.517,20.505,19.495767]
[1680463496328,10.0,20.519,20.505,19.495767]
[1680463497027,10.0,20.519,20.505,10.0]
[1680463497326,28.21,20.52,20.506,17.0]
[1680463497532,28.21,20.52,20.507,10.0]
[1680463497707,28.21,20.52,20.509,10.0]
[1680463497911,28.21,20.52,20.511,10.0]
[1680463498326,28.21,20.52,20.509,10.0]
[1680463498645,28.21,20.52,20.51,17.0]
[1680463499727,28.21,20.52,20.509,10.0]
[1680463499929,28.21,20.52,20.51,17.0]
[1680463500513,28.21,20.52,20.507,10.0]
[1680463500730,28.21,20.52,20.509,10.0]
[1680463501933,28.21,20.52,20.508,17.0]
[1680463502714,28.21,20.52,20.507,10.0]
[1680463503116,28.21,20.52,20.508,17.0]
[1680463503814,10.0,20.519,20.508,17.0]
[1680463504014,10.0,20.519,20.504,128.0818]
[1680463504415,10.0,20.519,20.507,10.0]
[1680463505528,10.0,20.519,20.506,17.0]
[1680463510229,10.0,20.519,20.505,38.21]
[1680463510831,10.0,20.519,20.507,10.0]
[1680463511730,10.0,20.519,20.506,17.0]
[1680463515932,10.0,20.519,20.505,10.0]
[1680463516330,10.0,20.519,20.507,10.0]
[1680463517611,28.21,20.52,20.507,10.0]
[1680463517831,28.21,20.52,20.509,10.0]
[1680463519146,28.21,20.52,20.508,17.0]
[1680463522147,10.0,20.519,20.508,17.0]
[1680463522325,10.0,20.519,20.505,10.0]
[1680463522326,10.0,20.519,20.507,10.0]
[1680463522553,10.0,20.519,20.509,10.0]
[1680463522727,10.0,20.519,20.507,10.0]
[1680463523030,10.0,20.519,20.509,10.0]
[1680463523221,10.0,20.519,20.507,10.0]
[1680463523422,10.0,20.519,20.509,10.0]
[1680463524437,10.0,20.519,20.507,10.0]
[1680463524637,10.0,20.519,20.509,10.0]
[1680463525231,10.0,20.519,20.507,10.0]
[1680463525527,10.0,20.519,20.509,10.0]
[1680463525730,10.0,20.519,20.507,10.0]
[1680463525928,10.0,20.519,20.509,10.0]
[1680463526129,10.0,20.519,20.507,10.0]
[1680463526340,10.0,20.519,20.509,10.0]
[1680463526533,10.0,20.519,20.508,17.0]
[1680463527736,10.0,20.519,20.505,10.0]
[1680463527737,10.0,20.519,20.507,10.0]
[1680463527938,10.0,20.519,20.509,10.0]
[1680463528445,10.0,20.519,20.507,10.0]
[1680463528646,10.0,20.519,20.509,10.0]
[1680463528944,28.21,20.52,20.509,10.0]
[1680463529444,28.21,20.52,20.507,10.0]
[1680463529636,28.21,20.52,20.509,10.0]
[1680463529839,10.0,20.519,20.507,10.0]
[1680463531548,28.21,20.52,20.509,10.0]
[1680463537552,14.84685461,20.522,20.509,10.0]
[1680463537553,10.0,20.523,20.509,10.0]
[1680463537767,62.96233556,20.529,20.51,17.0]
[1680463537946,62.96233556,20.529,20.511,10.0]
[1680463537947,21.705,20.526,20.511,10.0]
[1680463538144,21.705,20.526,20.512,17.0]
[1680463538347,21.705,20.526,20.513,10.0]
[1680463538560,21.705,20.526,20.515,10.0]
[1680463538851,21.705,20.526,20.516,17.0]
[1680463539861,1.705,20.526,20.516,17.0]
[1680463540051,1.705,20.526,20.517,10.0]
[1680463540359,1.705,20.526,20.518,17.0]
[1680463544851,1.705,20.526,20.517,10.0]
[1680463545058,1.705,20.526,20.518,17.0]
[1680463549264,1.705,20.526,20.519,10.0]
[1680463549460,1.705,20.526,20.52,17.0]
[1680463549660,20.0,20.533,20.521,10.0]
[1680463549847,20.0,20.533,20.522,17.0]
[1680463550049,23.408,20.535,20.523,10.0]
[1680463550245,23.408,20.535,20.524,17.0]
[1680463550461,23.408,20.535,20.525,10.0]
[1680463550647,23.408,20.535,20.526,17.0]
[1680463551055,23.408,20.535,20.525,10.0]
[1680463551249,23.408,20.535,20.526,17.0]
[1680463551750,23.408,20.535,20.524,17.0]
[1680463554557,23.408,20.535,20.523,10.0]
[1680463554868,23.408,20.535,20.524,17.0]
[1680463556153,23.408,20.535,20.523,10.0]
[1680463556455,23.408,20.535,20.524,17.0]
[1680463557249,10.0,20.534,20.523,10.0]
[1680463557465,10.0,20.532,20.524,17.0]
[1680463558064,10.0,20.532,20.523,10.0]
[1680463558263,10.0,20.532,20.524,17.0]
[1680463558761,10.0,20.532,20.523,10.0]
[1680463559058,10.0,20.532,20.524,17.0]
[1680463560267,20.0,20.533,20.524,17.0]
[1680463560561,20.0,20.533,20.523,10.0]
[1680463560757,20.0,20.533,20.524,17.0]
[1680463561367,3.408,20.535,20.524,17.0]
[1680463561568,3.408,20.535,20.525,10.0]
[1680463561867,3.408,20.535,20.527,10.0]
[1680463562073,3.408,20.535,20.529,10.0]
[1680463562457,3.408,20.535,20.531,10.0]
[1680463562877,3.408,20.535,20.532,17.0]
[1680463563372,3.408,20.535,20.53,17.0]
[1680463564188,3.408,20.535,20.529,10.0]
[1680463564378,3.408,20.535,20.53,17.0]
[1680463565358,3.408,20.535,20.529,10.0]
[1680463565570,3.408,20.535,20.53,17.0]
[1680463566572,3.408,20.535,20.528,17.0]
[1680463567256,3.408,20.535,20.529,10.0]
[1680463567458,3.408,20.535,20.531,10.0]
[1680463567659,3.408,20.535,20.529,10.0]
[1680463567861,3.408,20.535,20.53,17.0]
[1680463568369,1.703,20.544,20.531,10.0]
[1680463568565,1.703,20.544,20.533,10.0]
[1680463568960,1.703,20.544,20.535,10.0]
[1680463569574,1.703,20.544,20.534,17.0]
[1680463570259,1.703,20.544,20.534,10.0]
[1680463570460,1.703,20.544,20.535,17.0]
[1680463571067,1.703,20.544,20.534,10.0]
[1680463571268,1.703,20.544,20.535,17.0]
[1680463571776,1.703,20.544,20.534,10.0]
[1680463571979,1.703,20.544,20.535,17.0]
[1680463572677,1.703,20.544,20.532,20.0]
[1680463573581,1.703,20.544,20.533,10.0]
[1680463573969,1.703,20.544,20.535,10.0]
[1680463575381,1.703,20.544,20.534,17.0]
[1680463575886,1.703,20.544,20.534,10.0]
[1680463576081,1.703,20.544,20.535,17.0]
[1680463577177,1.703,20.544,20.534,10.0]
[1680463577478,1.703,20.544,20.536,10.0]
[1680463577678,1.703,20.544,20.534,10.0]
[1680463577875,1.703,20.544,20.535,17.0]
[1680463579285,1.703,20.544,20.535,10.0]
[1680463579584,1.703,20.544,20.534,17.0]
[1680463580086,1.703,20.544,20.532,20.0]
[1680463580287,1.703,20.544,20.531,30.0]
[1680463580488,1.703,20.544,20.533,10.0]
[1680463582490,1.703,20.544,20.532,17.0]
[1680463582692,1.703,20.544,20.534,10.0]
[1680463583889,1.703,20.544,20.532,17.0]
[1680463584094,1.703,20.544,20.534,10.0]
[1680463585585,1.703,20.544,20.533,10.0]
[1680463588376,1.703,20.544,20.535,10.0]
[1680463590298,1.703,20.544,20.534,17.0]
[1680463597202,1.703,20.544,20.53,110.8565]
[1680463597680,19.0059027,20.544,20.53,110.8565]
[1680463597875,20.0,20.543,20.527,14.80019862]
[1680463598100,10.0,20.542,20.528,10.0]
[1680463598795,10.0,20.542,20.53,10.0]
[1680463598993,10.0,20.542,20.531,17.0]
[1680463601197,10.0,20.542,20.53,10.0]
[1680463601398,10.0,20.542,20.531,17.0]
[1680463602398,10.0,20.542,20.53,10.0]
[1680463603601,10.0,20.542,20.528,10.0]
[1680463603794,10.0,20.542,20.53,10.0]
[1680463605720,10.0,20.542,20.529,17.0]
[1680463608813,20.0,20.543,20.53,10.0]
[1680463609101,21.703,20.544,20.532,10.0]
[1680463610501,21.703,20.544,20.53,10.0]
[1680463610696,21.703,20.544,20.532,10.0]
[1680463611298,21.703,20.544,20.534,10.0]
[1680463611497,21.703,20.544,20.533,17.0]
[1680463612593,21.703,20.544,20.532,10.0]
[1680463612792,21.703,20.544,20.533,17.0]
[1680463614889,1.703,20.544,20.533,17.0]
[1680463615108,1.703,20.544,20.533,125.0106]
[1680463615403,1.703,20.544,20.534,10.0]
[1680463615593,1.703,20.544,20.535,17.0]
[1680463615787,1.703,20.544,20.536,10.0]
[1680463615989,1.703,20.544,20.538,10.0]
[1680463616397,1.703,20.544,20.54,10.0]
[1680463616810,1.703,20.544,20.539,17.0]
[1680463618404,10.0,20.555,20.54,10.0]
[1680463618601,20.0,20.554,20.542,10.0]
[1680463618812,10.0,20.553,20.543,17.0]
[1680463619114,10.0,20.553,20.544,10.0]
[1680463619315,10.0,20.553,20.542,10.0]
[1680463619690,10.0,20.553,20.538,10.0]
[1680463619894,10.0,20.553,20.54,10.0]
[1680463620507,10.0,20.553,20.538,10.0]
[1680463621808,10.0,20.553,20.54,10.0]
[1680463622008,10.0,20.553,20.539,17.0]
[1680463624009,10.0,20.553,20.537,136.6655]
[1680463625003,10.0,20.553,20.538,10.0]
[1680463625199,10.0,20.553,20.54,10.0]
[1680463625427,10.0,20.553,20.538,10.0]
[1680463625615,10.0,20.553,20.54,10.0]
[1680463626008,10.0,20.553,20.538,10.0]
[1680463626207,10.0,20.553,20.54,10.0]
[1680463626609,10.0,20.553,20.538,10.0]
[1680463626811,10.0,20.553,20.54,10.0]
[1680463627003,10.0,20.553,20.539,17.0]
[1680463628604,10.0,20.553,20.537,119.6655]
[1680463628605,10.0,20.553,20.538,17.0]
[1680463628807,28.08,20.55,20.537,119.6655]
[1680463629024,10.0,20.549,20.537,119.6655]
[1680463629323,10.0,20.549,20.538,10.0]
[1680463629905,10.0,20.549,20.537,119.6655]
[1680463638526,17.3029027,20.549,20.537,119.6655]
[1680463642218,10.0,20.547,20.537,119.6655]
[1680463647828,17.3029027,20.549,20.537,119.6655]
[1680463648215,10.0,20.549,20.537,119.6655]
[1680463654250,28.01,20.55,20.537,119.6655]
[1680463654437,10.0,20.549,20.537,119.6655]
[1680463676773,10.0,20.549,20.537,119.6655]
[1680463679070,22.58,20.55,20.537,119.6655]
[1680463682384,27.0,20.549,20.537,119.6655]
[1680463701200,22.58,20.55,20.537,119.6655]
[1680463701397,22.58,20.55,20.539,10.0]
[1680463705315,22.58,20.55,20.541,10.0]
[1680463705815,22.58,20.55,20.539,10.0]
[1680463705989,22.58,20.55,20.541,10.0]
[1680463706191,22.58,20.55,20.539,10.0]
[1680463706505,10.0,20.549,20.54,17.0]
[1680463707919,10.0,20.549,20.54,10.0]
[1680463708504,10.0,20.549,20.539,17.0]
[1680463710705,22.57,20.55,20.539,17.0]
[1680463718911,22.57,20.55,20.539,31.31887501]
[1680463720920,22.57,20.55,20.537,119.6655]
[1680463721098,27.0,20.549,20.537,119.6655]
[1680463730423,34.3029027,20.549,20.537,119.6655]
[1680463731716,17.3029027,20.549,20.537,119.6655]
[1680463732221,17.0,20.548,20.537,119.6655]
[1680463732419,10.0,20.547,20.537,119.6655]
[1680463734421,10.0,20.549,20.537,119.6655]
[1680463757445,10.0,20.547,20.537,119.6655]
[1680463761446,10.0,20.545,20.537,119.6655]
[1680463761632,20.0,20.544,20.53,19.471927]
[1680463761834,22.51,20.54,20.53,19.471927]
[1680463762038,10.0,20.539,20.53,19.471927]
[1680463776066,10.0,20.539,20.526,118.9373]
[1680463776369,22.49,20.54,20.526,118.9373]
[1680463776572,22.49,20.54,20.527,17.0]
[1680463776772,22.49,20.54,20.528,10.0]
[1680463778377,22.49,20.54,20.53,10.0]
[1680463778771,22.49,20.54,20.529,17.0]
[1680463778972,22.49,20.54,20.528,10.0]
[1680463779156,22.49,20.54,20.529,17.0]
[1680463779573,22.49,20.54,20.53,10.0]
[1680463779760,22.49,20.54,20.529,17.0]
[1680463783073,22.49,20.54,20.529,10.0]
[1680463783460,22.49,20.54,20.528,17.0]
[1680463785669,22.49,20.54,20.527,10.0]
[1680463785874,10.0,20.539,20.526,118.9373]
[1680463795680,10.0,20.539,20.528,10.0]
[1680463795878,10.0,20.539,20.529,17.0]
[1680463797277,22.49,20.54,20.529,17.0]
[1680463797476,22.49,20.54,20.528,17.0]
[1680463797779,22.49,20.54,20.529,10.0]
[1680463798699,22.49,20.54,20.531,10.0]
[1680463799371,22.49,20.54,20.529,10.0]
[1680463799677,22.49,20.54,20.531,10.0]
[1680463799877,22.49,20.54,20.529,10.0]
[1680463800081,22.49,20.54,20.531,10.0]
[1680463800787,20.0,20.544,20.532,17.0]
[1680463800981,20.0,20.546,20.533,10.0]
[1680463801172,10.0,20.545,20.534,17.0]
[1680463801371,20.0,20.544,20.533,10.0]
[1680463801572,10.0,20.543,20.533,10.0]
[1680463802087,10.0,20.543,20.532,17.0]
[1680463803295,10.0,20.543,20.531,124.9766]
[1680463804590,10.0,20.543,20.531,114.9766]
[1680463811488,20.0,20.544,20.531,114.9766]
[1680463816890,10.0,20.543,20.531,114.9766]
[1680463817404,10.0,20.541,20.527,14.30515622]
[1680463817579,10.0,20.541,20.523,118.4889]
[1680463817898,10.0,20.541,20.527,10.0]
[1680463819306,10.0,20.539,20.527,10.0]
[1680463820007,10.0,20.539,20.526,118.9373]
[1680463821408,10.0,20.539,20.527,10.0]
[1680463821706,22.46,20.54,20.527,10.0]
[1680463821910,10.0,20.543,20.527,10.0]
[1680463822113,10.0,20.541,20.527,10.0]
[1680463824416,10.0,20.543,20.53,22.59]
[1680463824713,10.0,20.543,20.531,10.0]
[1680463825324,10.0,20.543,20.529,10.0]
[1680463828436,10.0,20.543,20.528,17.0]
[1680463831031,10.0,20.543,20.529,10.0]
[1680463831436,10.0,20.543,20.531,10.0]
[1680463833137,30.0,20.544,20.533,10.0]